bitfinex-derivatives/quotes_SOLF0:USTF0_20240930
["timestamp","ask_amount","ask_price","bid_price","bid_amount"]
[1727673508642,3.31792,156.59,156.58,7.89]
[1727673514558,0.12502,156.59,156.57,7.89]
[1727673514748,0.12502,156.59,156.54,3.1938]
[1727673514947,0.12502,156.59,156.57,7.89]
[1727673515745,3.1935,156.56,156.55,7.89]
[1727673522457,8.01502,156.59,156.5,3.1945]
[1727673522655,9.59752,156.59,156.53,7.89]
[1727673523153,3.1939,156.54,156.53,7.89]
[1727673531161,9.59752,156.59,156.48,3.3945]
[1727673531162,3.1946,156.51,156.48,3.3945]
[1727673531362,7.89,156.56,156.5,7.89]
[1727673531664,3.1948,156.5,156.47,0.12502]
[1727673531869,7.89,156.52,156.47,8.01502]
[1727673532262,9.6014,156.52,156.47,0.12502]
[1727673532664,3.1951,156.48,156.47,0.12502]
[1727673542074,1.7114,156.52,156.47,8.01502]
[1727673542269,3.1949,156.49,156.47,8.01502]
[1727673543076,9.6014,156.52,156.47,8.01502]
[1727673543077,3.1945,156.51,156.48,7.89]
[1727673543287,3.2209,156.55,156.5,7.89]
[1727673543577,14.32340316,156.55,156.5,7.89]
[1727673543979,3.1944,156.52,156.5,7.89]
[1727673545883,3.1944,156.52,156.48,11.0851]
[1727673546185,3.1947,156.5,156.47,8.01502]
[1727673546480,6.43340316,156.55,156.49,7.89]
[1727673546680,3.1941,156.53,156.5,7.89]
[1727673546880,14.32340316,156.55,156.5,7.89]
[1727673547581,3.1943,156.52,156.5,7.89]
[1727673547981,11.1109,156.55,156.5,7.89]
[1727673548184,1.6598,156.55,156.51,7.89]
[1727673548484,7.89,156.57,156.51,7.89]
[1727673549273,3.194,156.54,156.51,7.89]
[1727673550907,3.194,156.54,156.5,3.1945]
[1727673551284,3.194,156.54,156.51,7.89]
[1727673554398,3.1941,156.53,156.5,7.89]
[1727673555789,3.1941,156.53,156.49,3.1947]
[1727673555990,3.1941,156.53,156.51,7.89]
[1727673558591,1.6553,156.57,156.52,7.89]
[1727673558884,1.6553,156.57,156.53,7.89]
[1727673559083,1.7131,156.58,156.53,7.89]
[1727673559288,3.1936,156.56,156.53,7.89]
[1727673560314,7.89,156.57,156.52,7.89]
[1727673560315,3.1937,156.55,156.52,7.89]
[1727673560588,7.89,156.56,156.52,7.89]
[1727673560789,3.1939,156.54,156.5,11.0846]
[1727673561394,3.1939,156.54,156.51,7.89]
[1727673564787,3.1942,156.53,156.47,0.12502]
[1727673565097,7.89,156.54,156.48,11.085]
[1727673565688,7.89,156.54,156.47,0.12502]
[1727673565689,7.89,156.53,156.47,0.12502]
[1727673565890,1.6742,156.56,156.47,8.01502]
[1727673566092,11.0844,156.52,156.47,8.01502]
[1727673566295,11.0844,156.52,156.47,11.21012]
[1727673566791,11.0844,156.52,156.47,8.01502]
[1727673566993,11.0844,156.52,156.48,3.195]
[1727673568897,3.1947,156.5,156.47,8.01502]
[1727673569098,7.89,156.52,156.47,8.01502]
[1727673569404,7.89,156.53,156.47,8.01502]
[1727673570496,3.1945,156.51,156.47,11.21032]
[1727673573501,3.1943,156.52,156.48,11.085]
[1727673574196,3.194,156.54,156.5,7.89]
[1727673574401,9.5642,156.56,156.5,7.89]
[1727673575098,1.6742,156.56,156.5,7.89]
[1727673575305,1.6742,156.56,156.51,7.89]
[1727673575804,3.1939,156.54,156.51,11.0844]
[1727673576344,3.1939,156.54,156.51,7.89]
[1727673579109,9.5642,156.56,156.5,7.89]
[1727673579309,3.1941,156.53,156.5,7.89]
[1727673580313,3.1944,156.52,156.5,7.89]
[1727673580515,3.1944,156.52,156.48,11.085]
[1727673581706,3.1941,156.53,156.49,3.1949]
[1727673585716,3.1951,156.48,156.47,0.12502]
[1727673589622,3.1949,156.49,156.47,0.12502]
[1727673591822,3.1951,156.48,156.47,0.12502]
[1727673596833,1.6742,156.56,156.47,0.12502]
[1727673597035,7.89,156.5,156.47,0.12502]
[1727673597937,3.195,156.49,156.47,0.12502]
[1727673603335,7.89,156.49,156.47,0.12502]
[1727673603535,3.1951,156.48,156.47,0.12502]
[1727673614348,1.6947,156.52,156.47,0.12502]
[1727673614547,1.6947,156.52,156.47,8.01502]
[1727673614948,1.6947,156.52,156.48,7.89]
[1727673616365,3.1945,156.51,156.48,7.89]
[1727673618762,3.1945,156.51,156.47,8.01502]
[1727673619055,9.5847,156.52,156.47,8.01502]
[1727673619259,7.89,156.51,156.47,0.12502]
[1727673619759,1.6947,156.52,156.47,0.12502]
[1727673619760,7.89,156.49,156.47,0.12502]
[1727673620062,11.085,156.49,156.47,0.12502]
[1727673621457,11.0851,156.48,156.47,0.12502]
[1727673621958,3.1951,156.48,156.47,0.12502]
[1727673625060,11.0851,156.48,156.47,0.12502]
[1727673625365,3.1957,156.45,156.41,8.01502]
[1727673625659,3.1957,156.45,156.42,19.97428881]
[1727673625854,3.1957,156.45,156.43,7.68241877]
[1727673626057,3.1957,156.45,156.41,11.21142]
[1727673626252,7.89,156.46,156.41,11.21142]
[1727673626453,11.0856,156.46,156.42,7.68289671]
[1727673626657,11.0856,156.46,156.43,7.68289671]
[1727673626859,11.0856,156.46,156.41,11.21142]
[1727673627058,11.0856,156.46,156.42,7.68337358]
[1727673627258,11.0856,156.46,156.43,7.68337358]
[1727673627472,11.0856,156.46,156.41,11.21142]
[1727673627763,11.0856,156.46,156.42,7.68334447]
[1727673627964,11.0856,156.46,156.43,7.68334447]
[1727673628160,11.0856,156.46,156.41,11.21142]
[1727673628359,11.0856,156.46,156.42,7.68411238]
[1727673628669,3.1957,156.45,156.42,7.89]
[1727673628856,3.1957,156.45,156.43,7.6845171]
[1727673629083,3.1957,156.45,156.42,7.89]
[1727673629565,3.1957,156.45,156.43,7.68542181]
[1727673629764,3.1957,156.45,156.42,7.89]
[1727673629967,3.1957,156.45,156.43,7.68442748]
[1727673630166,3.1961,156.44,156.41,0.12502]
[1727673630665,3.1961,156.44,156.41,8.01502]
[1727673631367,3.1958,156.45,156.41,8.01502]
[1727673632295,3.1958,156.45,156.43,7.89]
[1727673639365,3.1952,156.48,156.44,7.89]
[1727673639873,3.195,156.49,156.46,7.89]
[1727673640477,9.5436,156.51,156.46,7.89]
[1727673640666,3.1951,156.48,156.46,7.89]
[1727673641175,3.1951,156.48,156.45,7.89]
[1727673641777,3.1951,156.48,156.44,3.1958]
[1727673641972,3.1951,156.48,156.45,7.89]
[1727673645591,3.1953,156.47,156.45,7.89]
[1727673646478,3.1953,156.47,156.44,7.89]
[1727673647473,7.89,156.49,156.44,7.89]
[1727673647678,3.1955,156.46,156.44,7.89]
[1727673650474,3.1954,156.47,156.44,7.89]
[1727673652571,3.195,156.49,156.45,7.89]
[1727673652773,7.89,156.5,156.45,7.89]
[1727673653279,3.1951,156.48,156.45,7.89]
[1727673660277,3.1949,156.49,156.47,7.89]
[1727673661383,3.1949,156.49,156.41,9.70454934]
[1727673661384,3.31932,156.53,156.48,31.05974719]
[1727673661583,0.12502,156.53,156.5,7.89]
[1727673662984,3.1944,156.52,156.5,7.89]
[1727673663891,3.1945,156.51,156.49,7.89]
[1727673664290,0.12502,156.53,156.49,7.89]
[1727673664487,3.1947,156.5,156.47,7.89]
[1727673670306,3.1947,156.5,156.46,3.1954]
[1727673670507,3.1947,156.5,156.48,7.89]
[1727673672105,4.95162,156.53,156.49,7.89]
[1727673672411,3.34192,156.53,156.5,7.89]
[1727673672613,0.12502,156.53,156.5,7.89]
[1727673673610,3.1944,156.52,156.5,7.89]
[1727673674813,0.12502,156.53,156.51,7.89]
[1727673675115,4.8265,156.58,156.51,7.89]
[1727673675314,3.1925,156.61,156.57,7.89]
[1727673675612,6.45329576,156.64,156.57,7.89]
[1727673675812,3.1924,156.62,156.57,11.0832]
[1727673676007,6.45329576,156.64,156.57,11.0832]
[1727673676412,3.1923,156.62,156.57,11.0832]
[1727673676910,6.45329576,156.64,156.57,7.89]
[1727673677218,3.1925,156.61,156.57,7.89]
[1727673682316,3.1926,156.6,156.57,7.89]
[1727673684017,3.1924,156.61,156.57,7.89]
[1727673685112,3.1926,156.6,156.57,7.89]
[1727673686218,3.1926,156.6,156.58,7.89]
[1727673688220,0.12502,156.65,156.58,7.89]
[1727673688424,0.12502,156.65,156.63,7.89]
[1727673688817,0.12502,156.65,156.61,7.89]
[1727673689218,3.1918,156.64,156.62,7.89]
[1727673689419,3.1918,156.64,156.63,7.89]
[1727673693723,3.1923,156.62,156.58,3.193]
[1727673693927,0.12502,156.65,156.61,7.89]
[1727673694333,3.192,156.64,156.61,7.89]
[1727673694542,0.12502,156.65,156.61,7.89]
[1727673695024,3.1919,156.64,156.61,7.89]
[1727673695524,3.1919,156.64,156.62,7.89]
[1727673695725,0.12502,156.65,156.62,7.89]
[1727673696031,3.192,156.63,156.62,7.89]
[1727673704024,3.192,156.63,156.59,3.1928]
[1727673704344,3.192,156.63,156.62,7.89]
[1727673705444,8.01502,156.65,156.55,83.92221489]
[1727673705633,11.28792,156.65,156.6,7.89]
[1727673706334,3.1919,156.64,156.6,7.89]
[1727673706541,11.28792,156.65,156.55,83.92221489]
[1727673706840,11.28792,156.65,156.6,7.89]
[1727673707737,3.1926,156.61,156.57,3.1931]
[1727673708034,3.1926,156.61,156.6,7.89]
[1727673712034,11.28792,156.65,156.6,7.89]
[1727673712265,3.1922,156.63,156.62,7.89]
[1727673720239,3.1924,156.61,156.6,7.89]
[1727673721248,3.39792,156.65,156.6,7.89]
[1727673721453,3.1923,156.62,156.6,7.89]
[1727673725060,3.1924,156.61,156.6,7.89]
[1727673726459,3.39792,156.65,156.59,7.89]
[1727673726774,7.89,156.62,156.55,83.92221489]
[1727673727065,6.64309695,156.65,156.55,91.81221489]
[1727673727266,7.89,156.6,156.55,91.81221489]
[1727673727489,7.89,156.6,156.56,7.89]
[1727673727660,6.64309695,156.65,156.56,7.89]
[1727673727661,3.1931,156.58,156.56,7.89]
[1727673728054,6.64309695,156.65,156.57,7.89]
[1727673728375,3.1928,156.6,156.59,7.89]
[1727673728569,3.39792,156.65,156.59,7.89]
[1727673728758,3.1922,156.62,156.61,7.89]
[1727673728959,11.28792,156.65,156.6,7.89]
[1727673729360,3.1924,156.61,156.6,7.89]
[1727673732563,3.39792,156.65,156.6,7.89]
[1727673732769,3.1921,156.63,156.61,7.89]
[1727673732968,3.39792,156.65,156.61,7.89]
[1727673734268,3.1922,156.62,156.61,7.89]
[1727673745080,0.12502,156.65,156.61,7.89]
[1727673745287,0.12502,156.65,156.64,7.89]
[1727673746075,3.31672,156.65,156.64,7.89]
[1727673746778,0.12502,156.65,156.64,7.89]
[1727673747984,3.31662,156.65,156.64,7.89]
[1727673773297,0.12502,156.65,156.64,7.89]
[1727673778508,3.1918,156.64,156.61,3.1923]
[1727673778707,3.1918,156.64,156.63,7.89]
[1727673779697,3.1922,156.63,156.57,1.5483]
[1727673780010,0.12502,156.65,156.62,7.89]
[1727673780898,3.192,156.63,156.62,7.89]
[1727673781610,3.192,156.64,156.62,7.89]
[1727673781811,0.12502,156.65,156.57,85.46637632]
[1727673782010,0.12502,156.65,156.58,19.94528729]
[1727673782211,0.12502,156.65,156.62,7.89]
[1727673783015,3.192,156.63,156.62,7.89]
[1727673786217,3.1919,156.64,156.62,7.89]
[1727673786422,3.1919,156.64,156.63,7.89]
[1727673789615,3.31672,156.65,156.63,7.89]
[1727673790316,3.1918,156.64,156.63,7.89]
[1727673791726,0.12502,156.65,156.63,7.89]
[1727673791917,3.31682,156.65,156.63,7.89]
[1727673792912,0.12502,156.65,156.63,11.082]
[1727673793316,0.12502,156.65,156.63,7.89]
[1727673794019,3.31662,156.65,156.63,7.89]
[1727673799517,0.12502,156.65,156.64,3.1918]
[1727673800328,0.12502,156.65,156.63,7.89]
[1727673800329,0.12502,156.65,156.63,11.082]
[1727673802726,0.12502,156.65,156.64,3.1918]
[1727673803225,4.89662,156.71,156.63,7.89]
[1727673803421,3.1907,156.7,156.68,7.89]
[1727673811130,4.89662,156.71,156.62,12.28198231]
[1727673811319,3.1912,156.67,156.64,3.1918]
[1727673811520,3.1912,156.67,156.65,7.89]
[1727673813523,12.78662,156.71,156.66,7.89]
[1727673814251,3.191,156.69,156.66,7.89]
[1727673815732,3.1911,156.68,156.65,3.1916]
[1727673815928,7.89,156.7,156.65,7.89]
[1727673816433,3.1913,156.67,156.65,7.89]
[1727673816827,3.191,156.68,156.65,11.0816]
[1727673818130,0.12502,156.71,156.68,3.1908]
[1727673818327,0.12502,156.71,156.69,7.89]
[1727673818529,0.12502,156.71,156.68,7.89]
[1727673819235,0.12502,156.71,156.6,1.6074]
[1727673819236,3.1906,156.7,156.64,3.1917]
[1727673819430,3.1906,156.7,156.67,7.89]
[1727673822731,3.31542,156.71,156.68,7.89]
[1727673824437,3.31542,156.71,156.68,11.081]
[1727673825131,0.12502,156.71,156.68,11.081]
[1727673828238,0.12502,156.71,156.68,7.89]
[1727673828442,0.12502,156.71,156.69,3.1908]
[1727673835843,0.12502,156.71,156.7,11.0806]
[1727673843952,10.98042083,156.75,156.74,3.1898]
[1727673844147,3.12584457,156.8,156.74,7.89]
[1727673844346,3.12584457,156.8,156.69,3.18840614]
[1727673844347,3.1885,156.81,156.76,7.89]
[1727673844542,14.24456272,156.81,156.76,11.0794]
[1727673844753,11.05606272,156.81,156.76,11.0794]
[1727673844951,3.16606272,156.81,156.76,11.0794]
[1727673845154,11.09501754,156.83,156.76,11.0794]
[1727673845352,18.98501754,156.83,156.76,7.89]
[1727673846048,3.1887,156.8,156.76,7.89]
[1727673846353,7.89,156.81,156.76,7.89]
[1727673847357,3.1888,156.79,156.76,7.89]
[1727673847746,7.89,156.81,156.76,7.89]
[1727673847958,3.189,156.78,156.75,7.89]
[1727673848844,3.31422,156.77,156.75,7.89]
[1727673851546,3.31422,156.77,156.73,3.1898]
[1727673851947,3.31422,156.77,156.75,7.89]
[1727673858066,0.12502,156.77,156.76,7.89]
[1727673862372,0.12502,156.77,156.75,7.89]
[1727673862575,3.31422,156.77,156.75,7.89]
[1727673864271,3.31422,156.77,156.76,7.89]
[1727673868385,0.12502,156.77,156.76,7.89]
[1727673869482,3.1896,156.75,156.71,3.1903]
[1727673869788,3.1896,156.75,156.73,7.89]
[1727673874685,0.12502,156.77,156.73,7.89]
[1727673876301,3.1896,156.75,156.73,7.89]
[1727673889897,3.1896,156.75,156.72,3.1902]
[1727673890097,3.1896,156.75,156.74,7.89]
[1727673893301,3.1895,156.76,156.74,7.89]
[1727673893515,0.12502,156.77,156.74,7.89]
[1727673894217,3.1896,156.75,156.74,7.89]
[1727673895141,3.1894,156.76,156.74,7.89]
[1727673898614,0.12502,156.77,156.69,83.85552875]
[1727673898818,0.12502,156.77,156.73,7.89]
[1727673899720,3.1895,156.76,156.73,7.89]
[1727673900822,0.12502,156.77,156.73,7.89]
[1727673901215,0.12502,156.77,156.69,83.85552875]
[1727673901417,0.12502,156.77,156.73,7.89]
[1727673901821,3.1894,156.76,156.73,7.89]
[1727673902716,0.12502,156.77,156.75,7.89]
[1727673904313,0.12502,156.77,156.75,11.0796]
[1727673904813,0.12502,156.77,156.75,3.1896]
[1727673905020,0.12502,156.77,156.76,7.89]
[1727673906019,0.12502,156.77,156.7,7.65812384]
[1727673906220,0.12502,156.77,156.76,7.89]
[1727673909413,0.12502,156.77,156.74,7.89]
[1727673909611,3.31422,156.77,156.74,7.89]
[1727673910117,0.12502,156.77,156.72,3.1902]
[1727673910319,0.12502,156.77,156.72,11.0802]
[1727673910622,3.1895,156.76,156.72,11.0802]
[1727673910816,3.1895,156.76,156.73,3.1899]
[1727673911624,3.1897,156.75,156.71,3.1903]
[1727673911822,7.89,156.76,156.69,83.85533261]
[1727673912025,7.89,156.76,156.71,7.89]
[1727673912523,3.1897,156.75,156.71,11.0803]
[1727673913240,3.1898,156.74,156.71,11.0803]
[1727673913528,3.1898,156.74,156.71,7.89]
[1727673917831,3.1898,156.74,156.7,3.1905]
[1727673918126,3.1898,156.74,156.7,11.0805]
[1727673919521,3.1898,156.74,156.71,11.0803]
[1727673923535,3.1898,156.74,156.71,7.89]
[1727673924436,3.1898,156.74,156.71,11.0804]
[1727673924735,7.89,156.76,156.71,11.0804]
[1727673925033,3.1897,156.75,156.71,11.0804]
[1727673933138,0.12502,156.77,156.67,83.86773211]
[1727673933139,7.89,156.74,156.67,83.86773211]
[1727673933345,7.89,156.74,156.68,7.89]
[1727673933838,3.19,156.73,156.69,3.1907]
[1727673938044,1.698,156.76,156.69,7.89]
[1727673938245,0.12502,156.77,156.74,7.89]
[1727673939083,0.12502,156.77,156.75,3.1896]
[1727673941947,3.1894,156.76,156.72,3.19]
[1727673942151,0.12502,156.77,156.74,7.89]
[1727673942768,0.12502,156.77,156.68,0.373]
[1727673942769,8.01502,156.77,156.68,0.373]
[1727673942945,8.01502,156.77,156.71,7.89]
[1727673944252,3.1894,156.76,156.72,3.1901]
[1727673950751,3.1894,156.76,156.72,11.0801]
[1727673950950,3.31422,156.77,156.73,3.19]
[1727673953358,3.1894,156.76,156.73,3.19]
[1727673954056,3.1896,156.75,156.7,7.89]
[1727673954857,8.01502,156.77,156.72,3.1902]
[1727673955063,3.1895,156.76,156.72,11.0802]
[1727673955251,0.12502,156.77,156.73,7.89]
[1727673956156,0.12502,156.77,156.74,3.1897]
[1727673956945,0.12502,156.77,156.73,7.89]
[1727673957161,0.12502,156.77,156.75,3.1896]
[1727673957361,0.12502,156.77,156.73,7.89]
[1727673957544,0.12502,156.77,156.76,3.1894]
[1727673957748,0.12502,156.77,156.76,11.0794]
[1727673960052,0.12502,156.77,156.76,3.1894]
[1727673960250,0.12502,156.77,156.75,3.1895]
[1727673961054,0.12502,156.77,156.75,11.0795]
[1727673962463,0.12502,156.77,156.75,7.89]
[1727673962664,0.12502,156.77,156.76,11.0794]
[1727673971868,0.12502,156.77,156.72,7.89]
[1727673973291,0.12502,156.77,156.73,7.89]
[1727673973872,0.12502,156.77,156.74,3.1896]
[1727673978466,3.31432,156.77,156.73,3.1899]
[1727673978672,3.31432,156.77,156.73,11.0799]
[1727673979081,0.12502,156.77,156.68,0.371]
[1727673979270,0.12502,156.77,156.72,7.89]
[1727673979774,3.31422,156.77,156.73,3.1899]
[1727673981181,3.1894,156.76,156.73,3.1899]
[1727673981374,3.1894,156.76,156.72,11.0802]
[1727673983375,3.1894,156.76,156.73,3.19]
[1727673983603,0.12502,156.77,156.75,7.89]
[1727673984684,0.12502,156.77,156.75,11.0795]
[1727673985889,0.12502,156.77,156.73,11.0798]
[1727673988487,8.01502,156.77,156.72,3.1902]
[1727673988692,0.12502,156.77,156.72,11.0802]
[1727673988993,8.01502,156.77,156.72,11.0802]
[1727673989383,3.1894,156.76,156.72,11.0802]
[1727673990388,11.20422,156.77,156.72,11.0802]
[1727673991691,8.01502,156.77,156.72,11.0802]
[1727673991891,3.1894,156.76,156.72,11.0802]
[1727673992088,3.1894,156.76,156.72,3.1902]
[1727673992296,0.12502,156.77,156.73,11.0799]
[1727673992893,3.31422,156.77,156.73,11.0799]
[1727673993503,0.12502,156.77,156.73,11.0799]
[1727673993701,0.12502,156.77,156.76,7.89]
[1727673994002,0.12502,156.77,156.76,11.0794]
[1727673994298,0.12502,156.77,156.76,3.1894]
[1727673994530,0.12502,156.77,156.76,11.0794]
[1727673996204,0.12502,156.77,156.7,27.56708181]
[1727673996403,0.12502,156.77,156.74,7.89]
[1727673997295,0.12502,156.77,156.74,11.0798]
[1727673997897,0.12502,156.77,156.74,7.89]
[1727673999199,0.12502,156.77,156.73,3.19]
[1727673999398,0.12502,156.77,156.74,7.89]
[1727674001708,0.12502,156.77,156.74,11.0798]
[1727674001898,0.12502,156.77,156.74,7.89]
[1727674002411,3.31422,156.77,156.74,7.89]
[1727674002606,0.12502,156.77,156.74,7.89]
[1727674003102,3.31432,156.77,156.74,7.89]
[1727674003708,0.12502,156.77,156.69,15.32144414]
[1727674004007,3.1895,156.76,156.73,7.89]
[1727674006109,3.1897,156.75,156.72,7.89]
[1727674011218,3.1894,156.76,156.72,11.0802]
[1727674011513,0.12502,156.77,156.72,7.89]
[1727674012641,3.1895,156.76,156.72,11.0802]
[1727674017213,0.12502,156.77,156.75,7.89]
[1727674018413,0.12502,156.77,156.74,3.1896]
[1727674018611,0.12502,156.77,156.75,7.89]
[1727674021719,0.12502,156.77,156.76,11.0794]
[1727674029023,0.12502,156.77,156.74,3.1897]
[1727674029331,0.12502,156.77,156.75,7.89]
[1727674029923,0.12502,156.77,156.75,11.0795]
[1727674031629,0.12502,156.77,156.76,7.89]
[1727674031827,0.12502,156.77,156.76,11.0794]
[1727674034028,0.12502,156.77,156.76,7.89]
[1727674036638,0.12502,156.77,156.76,11.0794]
[1727674045340,0.12502,156.77,156.72,1.5638]
[1727674045545,0.12502,156.77,156.73,19.88889828]
[1727674045734,0.12502,156.77,156.75,7.89]
[1727674050041,0.12502,156.77,156.76,7.89]
[1727674054951,0.12502,156.77,156.76,11.0794]
[1727674055945,0.12502,156.77,156.76,7.89]
[1727674061651,0.12502,156.77,156.75,11.0795]
[1727674062850,0.12502,156.77,156.75,7.89]
[1727674064253,0.12502,156.77,156.74,3.1897]
[1727674064254,0.12502,156.77,156.76,7.89]
[1727674064454,0.12502,156.77,156.76,11.0794]
[1727674066256,0.12502,156.77,156.76,7.89]
[1727674067053,0.12502,156.77,156.76,11.0794]
[1727674069958,0.12502,156.77,156.76,3.1894]
[1727674070171,0.12502,156.77,156.76,7.89]
[1727674077160,3.1897,156.75,156.71,3.1902]
[1727674077373,3.1897,156.75,156.72,7.89]
[1727674078468,3.1897,156.75,156.71,3.1902]
[1727674078669,3.1897,156.75,156.72,7.89]
[1727674082265,7.89,156.76,156.67,7.8884768]
[1727674082468,3.1898,156.74,156.69,11.0807]
[1727674082664,9.5061,156.76,156.69,11.0807]
[1727674082866,9.5061,156.76,156.7,19.93919715]
[1727674083070,3.1898,156.74,156.69,11.0807]
[1727674083366,3.1898,156.74,156.7,19.93839853]
[1727674083871,11.0798,156.74,156.7,19.93839853]
[1727674084274,3.19,156.73,156.69,11.0807]
[1727674086479,3.19,156.73,156.7,7.66936442]
[1727674086673,11.0798,156.74,156.71,7.66936442]
[1727674086872,11.0798,156.74,156.7,3.1906]
[1727674087076,11.0798,156.74,156.71,7.66819714]
[1727674087278,3.19,156.73,156.69,7.89]
[1727674087476,3.19,156.73,156.7,7.66704419]
[1727674087676,3.19,156.73,156.69,7.89]
[1727674087982,3.19,156.73,156.7,7.66675855]
[1727674088174,3.19,156.73,156.69,7.89]
[1727674088370,3.19,156.73,156.7,7.66505958]
[1727674088569,3.19,156.73,156.69,11.0808]
[1727674088979,3.19,156.73,156.7,7.66501788]
[1727674089182,3.19,156.73,156.69,11.0808]
[1727674089474,3.19,156.73,156.7,7.66501788]
[1727674089680,3.19,156.73,156.69,3.1908]
[1727674089879,3.19,156.73,156.7,7.66438321]
[1727674090081,3.19,156.73,156.69,3.1908]
[1727674090287,3.19,156.73,156.7,7.66438855]
[1727674090480,3.19,156.73,156.69,3.1908]
[1727674090780,3.19,156.73,156.7,7.66269896]
[1727674090983,11.08,156.73,156.69,3.1908]
[1727674091173,11.08,156.73,156.7,7.66244526]
[1727674091487,7.89,156.72,156.67,81.65015424]
[1727674091676,11.0805,156.71,156.68,7.66228151]
[1727674091879,11.0805,156.71,156.67,81.65015424]
[1727674092182,11.0805,156.71,156.68,7.66309964]
[1727674092391,7.89,156.71,156.67,81.65015424]
[1727674093579,3.1906,156.7,156.67,81.65015424]
[1727674094480,3.1905,156.71,156.67,81.65015424]
[1727674101785,7.89,156.7,156.67,81.65015424]
[1727674104084,3.1909,156.69,156.67,81.65015424]
[1727674104290,7.89,156.7,156.67,81.65015424]
[1727674104688,11.0807,156.7,156.67,81.65015424]
[1727674105789,3.1908,156.69,156.67,81.65015424]
[1727674111390,11.0808,156.69,156.67,81.65015424]
[1727674113388,7.89,156.68,156.67,81.65015424]
[1727674114098,11.081,156.68,156.67,81.65015424]
[1727674118808,7.89,156.68,156.65,0.12502]
[1727674118998,11.0814,156.66,156.65,0.12502]
[1727674120205,3.1914,156.66,156.65,0.12502]
[1727674120505,11.0814,156.66,156.65,0.12502]
[1727674124613,3.1919,156.64,156.6,3.1926]
[1727674124811,7.89,156.63,156.6,3.1926]
[1727674125210,7.89,156.63,156.59,3.31772]
[1727674125927,7.89,156.63,156.6,3.1926]
[1727674127115,4.8547,156.69,156.59,8.01502]
[1727674127309,7.89,156.65,156.61,3.1924]
[1727674128006,4.8547,156.69,156.59,8.01502]
[1727674128208,7.89,156.68,156.63,7.89]
[1727674128411,0.12502,156.71,156.65,7.89]
[1727674128606,0.12502,156.71,156.68,3.191]
[1727674129113,0.12502,156.71,156.62,19.8319671]
[1727674129327,11.20542,156.71,156.66,7.89]
[1727674131314,11.20542,156.71,156.66,11.0814]
[1727674133809,0.12502,156.71,156.67,3.1912]
[1727674134018,0.12502,156.71,156.67,11.0812]
[1727674135111,0.12502,156.71,156.68,3.191]
[1727674135611,0.12502,156.71,156.67,7.89]
[1727674135816,0.12502,156.71,156.67,11.0812]
[1727674136310,0.12502,156.71,156.67,3.1912]
[1727674136512,8.01502,156.71,156.65,11.0814]
[1727674137318,3.1906,156.7,156.65,11.0814]
[1727674137616,8.01502,156.71,156.66,3.1914]
[1727674137915,11.20542,156.71,156.66,3.1914]
[1727674139709,11.20542,156.71,156.65,86.21284824]